fUSD/lending_fUSD_20260524
["ID","MTS","AMOUNT","RATE_DAILY","PERIOD"]
[422900982,1779593448000,-425.0210543,0.00031444,7]
[422900996,1779593448000,-796.57184003,0.00031487,7]
[422900978,1779593448000,-369.63594397,0.00031444,7]
[422900965,1779593448000,-380.05890496,0.00031443,7]
[422900977,1779593448000,-427.19926889,0.00031443,7]
[422901014,1779593448000,-730.20452362,0.00031487,7]
[422900957,1779593448000,-176.93539598,0.00031442,7]
[422900952,1779593448000,-246.64956027,0.00031441,7]
[422900951,1779593448000,-404.19157184,0.00031436,7]
[422900954,1779593448000,-153.20456994,0.00031441,7]
[422900953,1779593448000,-150.66077114,0.00031441,7]
[422900955,1779593448000,-333.3184015,0.00031441,7]
[422900959,1779593448000,-160.29041027,0.00031443,7]
[422900960,1779593448000,-336.51878437,0.00031443,7]
[422900958,1779593448000,-158.73104345,0.00031443,7]
[422900961,1779593448000,-164.82309603,0.00031443,2]
[422900964,1779593448000,-235.88719244,0.00031443,7]
[422900966,1779593448000,-174.15332458,0.00031443,7]
[422900967,1779593448000,-231.66009719,0.00031443,7]
[422900969,1779593448000,-389.67865547,0.00031443,7]
[422900962,1779593448000,-343.76903719,0.00031443,7]
[422900968,1779593448000,-232.74939763,0.00031443,7]
[422900963,1779593448000,-225.52809829,0.00031443,7]
[422900971,1779593448000,-164.77582013,0.00031443,7]
[422900970,1779593448000,-173.16335658,0.00031443,7]
[422900981,1779593448000,-398.09847481,0.00031444,7]
[422900975,1779593448000,-408.41532345,0.00031443,7]
[422900980,1779593448000,-433.64333182,0.00031444,7]
[422900973,1779593448000,-250.24056446,0.00031443,7]
[422900974,1779593448000,-168.64381813,0.00031443,2]
[422900976,1779593448000,-384.42443562,0.00031443,7]
[422900972,1779593448000,-224.93760244,0.00031443,7]
[422900979,1779593448000,-434.32458396,0.00031444,7]
[422900956,1779593448000,-228.20744649,0.00031442,7]
[422901010,1779593448000,-458.93606428,0.00031487,7]
[422901011,1779593448000,-402.62314383,0.00031487,7]
[422901045,1779593448000,-419.13483545,0.00031487,7]
[422901049,1779593448000,-465.26163203,0.00031487,2]
[422901048,1779593448000,-403.62075593,0.00031487,7]
[422901044,1779593448000,-473.33317377,0.00031487,7]
[422901052,1779593448000,-479.00585261,0.00031487,7]
[422901050,1779593448000,-407.80549076,0.00031487,7]
[422901051,1779593448000,-469.00619416,0.00031487,7]
[422901046,1779593448000,-516.22269509,0.00031487,7]
[422901047,1779593448000,-486.958866,0.00031487,7]
[422901056,1779593448000,-703.74516294,0.00031487,7]
[422901066,1779593448000,-2045.059,0.000316,20]
[422901057,1779593448000,-494.99401636,0.00031487,7]
[422901055,1779593448000,-669.33998619,0.00031487,7]
[422901067,1779593448000,-2045.06,0.000316,30]
[422901059,1779593448000,-433.93635233,0.00031487,7]
[422901060,1779593448000,-755.12712521,0.00031487,7]
[422901058,1779593448000,-436.2153258,0.00031487,2]
[422901061,1779593448000,-1173.70426928,0.00031487,7]
[422901065,1779593448000,-2045.059,0.000316,30]
[422901064,1779593448000,-1561.13,0.000315,7]
[422901063,1779593448000,-150.0,0.000315,2]
[422901062,1779593448000,-200.67189006,0.000315,2]
[422901069,1779593448000,-1567.7,0.000316,30]
[422901070,1779593448000,-273.79930076,0.00031644,40]
[422901072,1779593448000,-1660.79,0.00031743,2]
[422901068,1779593448000,-1567.709,0.000316,20]
[422901015,1779593448000,-623.75339009,0.00031487,2]
[422901042,1779593448000,-401.91945652,0.00031487,7]
[422901053,1779593448000,-417.46561262,0.00031487,7]
[422901071,1779593448000,-589.0,0.00031739,9]
[422901043,1779593448000,-404.15315889,0.00031487,7]
[422901054,1779593448000,-688.52784134,0.00031487,7]
[422901013,1779593448000,-929.32618604,0.00031487,7]
[422901009,1779593448000,-315.94738838,0.00031487,7]
[422901018,1779593448000,-1148.94462486,0.00031487,7]
[422901028,1779593448000,-433.38976807,0.00031487,7]
[422901024,1779593448000,-466.74571987,0.00031487,7]
[422901020,1779593448000,-1155.00371769,0.00031487,7]
[422901017,1779593448000,-638.79351323,0.00031487,7]
[422901027,1779593448000,-411.26104166,0.00031487,7]
[422901023,1779593448000,-407.97713175,0.00031487,7]
[422901019,1779593448000,-533.29116789,0.00031487,7]
[422901021,1779593448000,-687.28918161,0.00031487,7]
[422901022,1779593448000,-410.06889952,0.00031487,7]
[422901025,1779593448000,-440.55274151,0.00031487,7]
[422901012,1779593448000,-497.97533913,0.00031487,5]
[422901030,1779593448000,-684.44881936,0.00031487,7]
[422901026,1779593448000,-445.89755231,0.00031487,7]
[422901033,1779593448000,-494.28151295,0.00031487,7]
[422901039,1779593448000,-438.75067345,0.00031487,7]
[422901038,1779593448000,-400.87172942,0.00031487,7]
[422901034,1779593448000,-298.96326732,0.00031487,7]
[422901037,1779593448000,-499.95446095,0.00031487,2]
[422901036,1779593448000,-569.09083424,0.00031487,7]
[422901041,1779593448000,-432.61671409,0.00031487,7]
[422901032,1779593448000,-407.66395724,0.00031487,7]
[422901029,1779593448000,-587.94092774,0.00031487,7]
[422901031,1779593448000,-473.09645547,0.00031487,7]
[422901040,1779593448000,-653.74254982,0.00031487,7]
[422901035,1779593448000,-430.47191668,0.00031487,7]
[422901115,1779593449000,-1081.77841336,0.00032082,7]
[422901113,1779593449000,-844.0887401,0.00032082,7]
[422901111,1779593449000,-1224.0,0.00032033,2]
[422901110,1779593449000,-239.005,0.00032001,13]
[422901108,1779593449000,-184.08,0.00032001,13]
[422901109,1779593449000,-184.08,0.00032001,13]
[422901107,1779593449000,-2000.0,0.00032,7]
[422901105,1779593449000,-422.02,0.00032,7]
[422901101,1779593449000,-317.0150889,0.00032,120]
[422901112,1779593449000,-200.0,0.00032055,2]
[422901106,1779593449000,-889.42,0.00032,7]
[422901103,1779593449000,-167.46077136,0.00032,120]
[422901130,1779593449000,-1589.58091076,0.00032111,60]
[422901116,1779593449000,-926.71107414,0.00032082,7]
[422901114,1779593449000,-902.41349285,0.00032082,7]
[422901119,1779593449000,-1028.99776006,0.00032082,7]
[422901127,1779593449000,-860.65980168,0.00032083,7]
[422901129,1779593449000,-1467.1303366,0.00032083,7]
[422901126,1779593449000,-855.5610242,0.00032083,7]
[422901131,1779593449000,-676.8,0.0003221,5]
[422901128,1779593449000,-879.68145367,0.00032083,7]
[422901118,1779593449000,-882.27522263,0.00032082,7]
[422901122,1779593449000,-779.69173761,0.00032082,2]
[422901123,1779593449000,-798.49189153,0.00032082,7]
[422901121,1779593449000,-912.75565452,0.00032082,7]
[422901102,1779593449000,-200.27047624,0.00032,120]
[422901117,1779593449000,-995.71480004,0.00032082,7]
[422901100,1779593449000,-1603.0,0.00032,60]
[422901083,1779593449000,-158.0,0.00031853,30]
[422901099,1779593449000,-700.0,0.00032,14]
[422901120,1779593449000,-1161.65773255,0.00032082,7]
[422901080,1779593449000,-155.0,0.00031853,30]
[422901074,1779593449000,-250.0,0.00031748,7]
[422901073,1779593449000,-250.0,0.00031748,7]
[422901079,1779593449000,-157.0,0.00031853,30]
[422901076,1779593449000,-250.0,0.00031748,7]
[422901078,1779593449000,-500.0,0.00031822,60]
[422901077,1779593449000,-200.0,0.00031785,2]
[422901075,1779593449000,-250.0,0.00031748,7]
[422901081,1779593449000,-190.0,0.00031853,30]
[422901091,1779593449000,-150.0,0.00031858,2]
[422901090,1779593449000,-154.0,0.00031853,30]
[422901098,1779593449000,-250.0,0.00032,7]
[422901092,1779593449000,-250.0,0.000319,120]
[422901084,1779593449000,-155.0,0.00031853,30]
[422901085,1779593449000,-319.0,0.00031853,30]
[422901086,1779593449000,-153.0,0.00031853,30]
[422901088,1779593449000,-355.0,0.00031853,30]
[422901087,1779593449000,-155.0,0.00031853,30]
[422901089,1779593449000,-214.0,0.00031853,30]
[422901094,1779593449000,-150.0,0.00031963,2]
[422901096,1779593449000,-1761.47924134,0.00032,2]
[422901104,1779593449000,-3686.28586234,0.00032,120]
[422901095,1779593449000,-150.0,0.00031963,2]
[422901093,1779593449000,-2148.95,0.00031905,14]
[422901097,1779593449000,-325.0,0.00032,5]
[422901082,1779593449000,-607.0,0.00031853,30]
[422901124,1779593449000,-1436.18078107,0.00032082,7]
[422901165,1779593449000,-214.0,0.00032853,30]
[422901132,1779593449000,-589.0,0.00032294,9]
[422901167,1779593449000,-1003.01,0.00032877,2]
[422901160,1779593449000,-155.0,0.00032853,30]
[422901170,1779593449000,-800.0,0.00032877,30]
[422901169,1779593449000,-800.0,0.00032877,30]
[422901188,1779593449000,-800.0,0.00032877,30]
[422901164,1779593449000,-355.0,0.00032853,30]
[422901166,1779593449000,-154.0,0.00032853,30]
[422901168,1779593449000,-350.4,0.00032877,2]
[422901172,1779593449000,-800.0,0.00032877,30]
[422901171,1779593449000,-800.0,0.00032877,30]
[422901174,1779593449000,-800.0,0.00032877,30]
[422901186,1779593449000,-800.0,0.00032877,30]
[422901159,1779593449000,-158.0,0.00032853,30]
[422901184,1779593449000,-800.0,0.00032877,30]
[422901176,1779593449000,-800.0,0.00032877,30]
[422901177,1779593449000,-800.0,0.00032877,30]
[422901178,1779593449000,-800.0,0.00032877,30]
[422901175,1779593449000,-800.0,0.00032877,30]
[422901179,1779593449000,-800.0,0.00032877,30]
[422901183,1779593449000,-800.0,0.00032877,30]
[422901182,1779593449000,-800.0,0.00032877,30]
[422901180,1779593449000,-800.0,0.00032877,30]
[422901181,1779593449000,-800.0,0.00032877,30]
[422901187,1779593449000,-800.0,0.00032877,30]
[422901189,1779593449000,-716.0,0.00032877,30]
[422901125,1779593449000,-1443.75464711,0.00032082,7]
[422901185,1779593449000,-800.0,0.00032877,30]
[422901163,1779593449000,-155.0,0.00032853,30]
[422901173,1779593449000,-800.0,0.00032877,30]
[422901161,1779593449000,-319.0,0.00032853,30]
[422901162,1779593449000,-153.0,0.00032853,30]
[422901133,1779593449000,-909.42543006,0.000323,2]
[422901135,1779593449000,-1000.0,0.000325,2]
[422901143,1779593449000,-9892.5489,0.0003255,7]
[422901136,1779593449000,-1002.11888913,0.000325,7]
[422901145,1779593449000,-500.0,0.00032644,60]
[422901137,1779593449000,-1001.38824666,0.000325,7]
[422901144,1779593449000,-200.0,0.00032579,2]
[422901140,1779593449000,-184.08,0.00032549,13]
[422901142,1779593449000,-239.005,0.00032549,13]
[422901138,1779593449000,-151.0,0.000325,5]
[422901141,1779593449000,-184.08,0.00032549,13]
[422901139,1779593449000,-10252.74,0.000325,14]
[422901134,1779593449000,-10000.0,0.0003244,7]
[422901157,1779593449000,-190.0,0.00032853,30]
[422901158,1779593449000,-607.0,0.00032853,30]
[422901150,1779593449000,-506.38406531,0.00032736,2]
[422901151,1779593449000,-4914.62805675,0.000328,2]
[422901153,1779593449000,-889.42,0.000328,7]
[422901152,1779593449000,-422.02,0.000328,7]
[422901155,1779593449000,-157.0,0.00032853,30]
[422901154,1779593449000,-589.0,0.00032848,10]
[422901149,1779593449000,-1561.13,0.000327,7]
[422901146,1779593449000,-500.0,0.00032644,60]
[422901156,1779593449000,-155.0,0.00032853,30]
[422901147,1779593449000,-2000.0,0.000327,7]
[422901148,1779593449000,-150.87474613,0.000327,10]
[422901233,1779593450000,-1194.85776005,0.00032976,7]
[422901228,1779593450000,-154.26468722,0.00032877,120]
[422901230,1779593450000,-1082.89619143,0.00032976,7]
[422901221,1779593450000,-5000.0,0.00032877,120]
[422901227,1779593450000,-500.0,0.00032877,2]
[422901226,1779593450000,-500.0,0.00032877,2]
[422901234,1779593450000,-1058.73026716,0.00032976,7]
[422901223,1779593450000,-500.94712102,0.00032877,2]
[422901224,1779593450000,-418.65241524,0.00032877,2]
[422901219,1779593450000,-241.088983,0.00032877,7]
[422901231,1779593450000,-1298.13409604,0.00032976,7]
[422901225,1779593450000,-500.0,0.00032877,2]
[422901229,1779593450000,-250.0,0.000329,120]
[422901244,1779593450000,-38010.09196699,0.00033,3]
[422901245,1779593450000,-76715.62333236,0.00033,5]
[422901240,1779593450000,-1732.50557654,0.00032976,7]
[422901241,1779593450000,-1026.67322904,0.00032976,7]
[422901235,1779593450000,-1393.98927906,0.00032976,7]
[422901236,1779593450000,-1095.30678543,0.00032976,7]
[422901238,1779593450000,-958.19026984,0.00032976,7]
[422901242,1779593450000,-1032.79176202,0.00032976,7]
[422901237,1779593450000,-935.63008513,0.00032976,2]
[422901239,1779593450000,-1723.41693728,0.00032976,7]
[422901243,1779593450000,-1760.55640392,0.00032976,7]
[422901248,1779593450000,-151.0,0.00033,7]
[422901220,1779593450000,-241.088983,0.00032877,7]
[422901232,1779593450000,-1112.05328897,0.00032976,7]
[422901216,1779593450000,-241.088983,0.00032877,7]
[422901190,1779593450000,-151.0,0.00032877,7]
[422901217,1779593450000,-241.088983,0.00032877,7]
[422901258,1779593450000,-350.0,0.00033014,5]
[422901191,1779593450000,-151.0,0.00032877,7]
[422901193,1779593450000,-151.0,0.00032877,7]
[422901198,1779593450000,-151.0,0.00032877,7]
[422901194,1779593450000,-151.0,0.00032877,7]
[422901195,1779593450000,-151.0,0.00032877,7]
[422901192,1779593450000,-151.0,0.00032877,7]
[422901197,1779593450000,-151.0,0.00032877,7]
[422901196,1779593450000,-151.0,0.00032877,7]
[422901199,1779593450000,-151.0,0.00032877,7]
[422901200,1779593450000,-151.0,0.00032877,7]
[422901210,1779593450000,-241.088983,0.00032877,7]
[422901201,1779593450000,-151.0,0.00032877,7]
[422901202,1779593450000,-151.0,0.00032877,7]
[422901204,1779593450000,-185.451111,0.00032877,7]
[422901203,1779593450000,-151.0,0.00032877,7]
[422901209,1779593450000,-241.088983,0.00032877,7]
[422901207,1779593450000,-241.088983,0.00032877,7]
[422901208,1779593450000,-241.088983,0.00032877,7]
[422901205,1779593450000,-241.088983,0.00032877,7]
[422901206,1779593450000,-241.088983,0.00032877,7]
[422901212,1779593450000,-241.088983,0.00032877,7]
[422901222,1779593450000,-500.0,0.00032877,2]
[422901214,1779593450000,-241.088983,0.00032877,7]
[422901211,1779593450000,-241.088983,0.00032877,7]
[422901215,1779593450000,-241.088983,0.00032877,7]
[422901213,1779593450000,-241.088983,0.00032877,7]
[422901218,1779593450000,-241.088983,0.00032877,7]
[422901249,1779593450000,-52204.15779821,0.00033,2]
[422901246,1779593450000,-733.13593523,0.00033,7]
[422901251,1779593450000,-572.521771,0.00033,14]
[422901280,1779593450000,-889.42,0.000337,30]
[422901284,1779593450000,-158.85112045,0.000338,120]
[422901285,1779593450000,-695.39793187,0.00033807,2]
[422901286,1779593450000,-157.0,0.00033853,30]
[422901287,1779593450000,-164.90054407,0.00033853,30]
[422901289,1779593450000,-607.0,0.00033853,30]
[422901296,1779593450000,-214.0,0.00033853,30]
[422901295,1779593450000,-355.0,0.00033853,30]
[422901288,1779593450000,-190.0,0.00033853,30]
[422901290,1779593450000,-158.0,0.00033853,30]
[422901292,1779593450000,-319.0,0.00033853,30]
[422901294,1779593450000,-155.0,0.00033853,30]
[422901291,1779593450000,-155.0,0.00033853,30]
[422901298,1779593450000,-250.0,0.000339,120]
[422901305,1779593450000,-3835.46,0.00034,20]
[422901297,1779593450000,-154.0,0.00033853,30]
[422901303,1779593450000,-3835.463,0.00034,10]
[422901308,1779593450000,-152.0,0.00034046,3]
[422901302,1779593450000,-250.0,0.00034,7]
[422901301,1779593450000,-159.06572239,0.00034,30]
[422901299,1779593450000,-589.0,0.00033958,11]
[422901300,1779593450000,-350.0,0.00033973,5]
[422901306,1779593450000,-349.7215,0.00034,30]
[422901304,1779593450000,-3835.463,0.00034,10]
[422901307,1779593450000,-10252.74,0.00034,14]
[422901247,1779593450000,-323.803914,0.00033,120]
[422901309,1779593450000,-154.25480577,0.00034046,5]
[422901279,1779593450000,-422.02,0.000337,30]
[422901277,1779593450000,-222.04,0.00033699,13]
[422901293,1779593450000,-153.0,0.00033853,30]
[422901276,1779593450000,-222.04,0.00033699,13]
[422901250,1779593450000,-151.0,0.00033,2]
[422901281,1779593450000,-398.4,0.00033756,19]
[422901252,1779593450000,-10252.74,0.00033,14]
[422901257,1779593450000,-2000.0,0.00033,7]
[422901254,1779593450000,-151.0,0.00033,7]
[422901253,1779593450000,-151.0,0.00033,7]
[422901255,1779593450000,-151.0,0.00033,7]
[422901256,1779593450000,-151.0,0.00033,7]
[422901262,1779593450000,-222.04,0.00033151,13]
[422901261,1779593450000,-239.005,0.00033097,13]
[422901260,1779593450000,-184.08,0.00033097,13]
[422901270,1779593450000,-150.0,0.00033451,2]
[422901269,1779593450000,-192.644694,0.0003345,18]
[422901267,1779593450000,-200.0,0.00033373,2]
[422901259,1779593450000,-184.08,0.00033097,13]
[422901275,1779593450000,-500.0,0.00033544,2]
[422901278,1779593450000,-383.076923,0.000337,19]
[422901264,1779593450000,-10252.74,0.000332,14]
[422901273,1779593450000,-151.0,0.000335,7]
[422901274,1779593450000,-151.0,0.000335,7]
[422901283,1779593450000,-398.4,0.00033771,19]
[422901282,1779593450000,-398.4,0.00033756,19]
[422901271,1779593450000,-1233.1000273,0.000335,2]
[422901266,1779593450000,-10000.0,0.00033317,14]
[422901268,1779593450000,-589.0,0.00033403,10]
[422901265,1779593450000,-2148.95,0.00033205,14]
[422901263,1779593450000,-222.04,0.00033151,13]
[422901272,1779593450000,-10252.74,0.000335,14]
[422901357,1779593451000,-500.0,0.00034378,30]
[422901350,1779593451000,-150.0,0.00034355,120]
[422901353,1779593451000,-500.0,0.00034378,30]
[422901354,1779593451000,-500.0,0.00034378,30]
[422901355,1779593451000,-500.0,0.00034378,30]
[422901349,1779593451000,-2053.98247124,0.00034316,7]
[422901344,1779593451000,-151.0,0.00034316,7]
[422901347,1779593451000,-1197.78543388,0.00034316,7]
[422901343,1779593451000,-241.088985,0.00034316,7]
[422901341,1779593451000,-241.088983,0.00034316,7]
[422901340,1779593451000,-241.088983,0.00034316,7]
[422901352,1779593451000,-228.57611875,0.00034369,2]
[422901351,1779593451000,-201.86600025,0.00034365,2]
[422901356,1779593451000,-500.0,0.00034378,30]
[422901369,1779593451000,-645.53,0.00034544,60]
[422901348,1779593451000,-1204.92372235,0.00034316,7]
[422901358,1779593451000,-267.71,0.00034378,30]
[422901361,1779593451000,-184.08,0.00034467,13]
[422901360,1779593451000,-10000.0,0.00034436,15]
[422901362,1779593451000,-184.08,0.00034467,13]
[422901363,1779593451000,-239.005,0.00034467,13]
[422901365,1779593451000,-2148.95,0.00034505,14]
[422901367,1779593451000,-354.79,0.00034544,60]
[422901368,1779593451000,-1512.94,0.00034544,60]
[422901370,1779593451000,-21947.05,0.00034544,60]
[422901372,1779593451000,-889.42,0.000346,30]
[422901366,1779593451000,-589.0,0.00034513,11]
[422901335,1779593451000,-1626.32082556,0.00034316,7]
[422901359,1779593451000,-1092.5,0.00034394,30]
[422901339,1779593451000,-2021.25650596,0.00034316,7]
[422901314,1779593451000,-151.0,0.00034182,7]
[422901345,1779593451000,-151.0,0.00034316,7]
[422901374,1779593451000,-421.2,0.00034742,120]
[422901312,1779593451000,-151.0,0.00034182,7]
[422901311,1779593451000,-676.8,0.00034182,7]
[422901313,1779593451000,-190.376279,0.00034182,7]
[422901310,1779593451000,-200.0,0.00034167,2]
[422901321,1779593451000,-251.64801,0.00034182,7]
[422901316,1779593451000,-151.0,0.00034182,7]
[422901315,1779593451000,-190.376279,0.00034182,7]
[422901319,1779593451000,-151.0,0.00034182,7]
[422901317,1779593451000,-190.376279,0.00034182,7]
[422901320,1779593451000,-151.0,0.00034182,7]
[422901318,1779593451000,-190.37628,0.00034182,7]
[422901323,1779593451000,-251.64801,0.00034182,7]
[422901322,1779593451000,-251.64801,0.00034182,7]
[422901330,1779593451000,-500.0,0.00034288,60]
[422901331,1779593451000,-1263.37889,0.00034316,7]
[422901326,1779593451000,-222.04,0.00034247,13]
[422901333,1779593451000,-1235.18531169,0.00034316,7]
[422901327,1779593451000,-222.04,0.00034247,13]
[422901325,1779593451000,-1467.71076691,0.000342,30]
[422901328,1779593451000,-2000.0,0.00034247,30]
[422901332,1779593451000,-1514.48977871,0.00034316,7]
[422901324,1779593451000,-251.64801,0.00034182,7]
[422901329,1779593451000,-500.0,0.00034288,60]
[422901338,1779593451000,-2010.6530935,0.00034316,7]
[422901342,1779593451000,-241.088983,0.00034316,7]
[422901337,1779593451000,-1117.88864815,0.00034316,7]
[422901346,1779593451000,-186.536325,0.00034316,7]
[422901336,1779593451000,-1091.56843266,0.00034316,2]
[422901334,1779593451000,-1277.85791633,0.00034316,7]
[422901383,1779593451000,-355.0,0.00034853,30]
[422901364,1779593451000,-152.19,0.00034479,120]
[422901382,1779593451000,-155.0,0.00034853,30]
[422901413,1779593451000,-293.96,0.00035,10]
[422901410,1779593451000,-253.68071648,0.00035,7]
[422901412,1779593451000,-139478.992569,0.00035,6]
[422901418,1779593451000,-253.38365484,0.00035,7]
[422901420,1779593451000,-211.86855134,0.00035,30]
[422901417,1779593451000,-150.0,0.00035,2]
[422901414,1779593451000,-234.0,0.00035,14]
[422901411,1779593451000,-154.05832993,0.00035,120]
[422901415,1779593451000,-648.67973427,0.00035,10]
[422901422,1779593451000,-152.24323284,0.00035,60]
[422901416,1779593451000,-151.0,0.00035,2]
[422901419,1779593451000,-193.9142622,0.00035,2]
[422901421,1779593451000,-174.01347179,0.00035,60]
[422901425,1779593451000,-150.0,0.00035,2]
[422901435,1779593451000,-653.16913149,0.00035,60]
[422901437,1779593451000,-8177.49858042,0.00035,90]
[422901424,1779593451000,-260.34176785,0.00035,120]
[422901426,1779593451000,-108813.20132368,0.00035,2]
[422901436,1779593451000,-326.0,0.00035,2]
[422901428,1779593451000,-151.0,0.00035,7]
[422901432,1779593451000,-151.0,0.00035,7]
[422901427,1779593451000,-151.0,0.00035,7]
[422901430,1779593451000,-151.0,0.00035,7]
[422901434,1779593451000,-18606.2632623,0.00035,90]
[422901429,1779593451000,-151.0,0.00035,7]
[422901431,1779593451000,-1561.13,0.00035,7]
[422901433,1779593451000,-151.0,0.00035,7]
[422901438,1779593451000,-1000.0,0.00035,120]
[422901371,1779593451000,-422.02,0.000346,30]
[422901406,1779593451000,-301.522,0.00035,120]
[422901407,1779593451000,-44466.17,0.00035,15]
[422901423,1779593451000,-162.78857742,0.00035,30]
[422901403,1779593451000,-151.0,0.00035,2]
[422901373,1779593451000,-2000.0,0.0003463,30]
[422901404,1779593451000,-2141.78505563,0.00035,7]
[422901378,1779593451000,-190.0,0.00034853,30]
[422901377,1779593451000,-1500.0,0.00034795,2]
[422901381,1779593451000,-319.0,0.00034853,30]
[422901379,1779593451000,-607.0,0.00034853,30]
[422901375,1779593451000,-1662.42,0.00034747,2]
[422901376,1779593451000,-1427.17,0.00034747,2]
[422901380,1779593451000,-155.0,0.00034853,30]
[422901391,1779593451000,-350.0,0.00034931,5]
[422901389,1779593451000,-2648.289,0.000349,30]
[422901390,1779593451000,-2648.29,0.000349,20]
[422901392,1779593451000,-200.0,0.00034961,2]
[422901396,1779593451000,-303.383942,0.00034999,120]
[422901393,1779593451000,-161.17,0.00034963,14]
[422901384,1779593451000,-214.0,0.00034853,30]
[422901400,1779593451000,-1952.20234587,0.00035,2]
[422901401,1779593451000,-526.0,0.00035,5]
[422901394,1779593451000,-161.17,0.00034963,14]
[422901405,1779593451000,-1258.35430838,0.00035,14]
[422901402,1779593451000,-250.0,0.00035,30]
[422901399,1779593451000,-172081.98636019,0.00035,4]
[422901409,1779593451000,-3000.0,0.00035,2]
[422901408,1779593451000,-1500.0,0.00035,7]
[422901397,1779593451000,-378.44007208,0.00035,7]
[422901387,1779593451000,-250.0,0.000349,120]
[422901388,1779593451000,-2648.289,0.000349,20]
[422901385,1779593451000,-154.0,0.00034853,30]
[422901386,1779593451000,-525.51322538,0.0003488,120]
[422901395,1779593451000,-161.17,0.00034963,14]
[422901398,1779593451000,-4758.64295581,0.00035,2]
[422901483,1779593452000,-3516.42370644,0.00035616,7]
[422901489,1779593452000,-3516.42370644,0.00035616,7]
[422901484,1779593452000,-3516.42370644,0.00035616,7]
[422901481,1779593452000,-3516.42370644,0.00035616,7]
[422901477,1779593452000,-222.04,0.00035616,13]
[422901490,1779593452000,-3516.42370644,0.00035616,7]
[422901473,1779593452000,-327.59279701,0.00035616,7]
[422901480,1779593452000,-3516.42370644,0.00035616,7]
[422901488,1779593452000,-3516.42370644,0.00035616,7]
[422901478,1779593452000,-3516.42370644,0.00035616,7]
[422901470,1779593452000,-151.0,0.00035616,7]
[422901471,1779593452000,-151.0,0.00035616,7]
[422901482,1779593452000,-3516.42370644,0.00035616,7]
[422901479,1779593452000,-3516.42370644,0.00035616,7]
[422901485,1779593452000,-3516.42370644,0.00035616,7]
[422901501,1779593452000,-3516.42370644,0.00035616,7]
[422901487,1779593452000,-3516.42370644,0.00035616,7]
[422901491,1779593452000,-3516.42370644,0.00035616,7]
[422901496,1779593452000,-3516.42370644,0.00035616,7]
[422901493,1779593452000,-3516.42370644,0.00035616,7]
[422901494,1779593452000,-3516.42370644,0.00035616,7]
[422901502,1779593452000,-3516.42370644,0.00035616,7]
[422901500,1779593452000,-3516.42370644,0.00035616,7]
[422901498,1779593452000,-3516.42370644,0.00035616,7]
[422901499,1779593452000,-3516.42370644,0.00035616,7]
[422901495,1779593452000,-3516.42370644,0.00035616,7]
[422901504,1779593452000,-3516.42370644,0.00035616,7]
[422901492,1779593452000,-3516.42370644,0.00035616,7]
[422901503,1779593452000,-3516.42370644,0.00035616,7]
[422901467,1779593452000,-151.0,0.00035616,7]
[422901486,1779593452000,-3516.42370644,0.00035616,7]
[422901476,1779593452000,-222.04,0.00035616,13]
[422901440,1779593452000,-592.67097296,0.0003502,2]
[422901474,1779593452000,-491.38919552,0.00035616,7]
[422901439,1779593452000,-2000.0,0.00035014,30]
[422901497,1779593452000,-3516.42370644,0.00035616,7]
[422901441,1779593452000,-227.76016211,0.00035026,2]
[422901445,1779593452000,-2000.0,0.000351,7]